Workbook

Sheet List
A1: State Office | C1: State | D1: Red | E1: Green | F1: Blue | H1: Choice | I1: Red | J1: Green | K1: Blue
C2: AK | D2: =IF($H$2=$A2,I$2,I$3) -> 255 | E2: 255 | F2: 255 | H2: =Calcs!B2 -> Texas | I2: 54 | J2: 96 | K2: 146
C3: AL | D3: 255 | E3: 255 | F3: 255 | I3: 255 | J3: 255 | K3: 255
C4: AR | D4: 255 | E4: 255 | F4: 255
A5: Arizona | C5: AZ | D5: 255 | E5: 255 | F5: 255
A6: California | C6: CA | D6: =IF($H$2=A6,I$2,I$3) -> 255 | E6: =IF($H$2=$A6,J$2,J$3) -> 255 | F6: =IF($H$2=$A6,K$2,K$3) -> 255
C7: CO | D7: 255 | E7: 255 | F7: 255
C8: CT | D8: 255 | E8: 255 | F8: 255
C9: DE | D9: 255 | E9: 255 | F9: 255
A10: Florida | C10: FL | D10: 255 | E10: 255 | F10: 255
A11: Georgia | C11: GA | D11: 255 | E11: 255 | F11: 255
C12: IA | D12: 255 | E12: 255 | F12: 255
C13: IA | D13: 255 | E13: 255 | F13: 255
C14: ID | D14: 255 | E14: 255 | F14: 255
A15: Illinois | C15: IL | D15: 255 | E15: 255 | F15: 255
C16: IN | D16: 255 | E16: 255 | F16: 255
C17: KS | D17: 255 | E17: 255 | F17: 255
C18: KY | D18: 255 | E18: 255 | F18: 255
C19: LA | D19: 255 | E19: 255 | F19: 255
A20: Massachusetts | C20: MA | D20: 255 | E20: 255 | F20: 255
C21: MA | D21: 255 | E21: 255 | F21: 255
C22: MD | D22: 255 | E22: 255 | F22: 255
C23: ME | D23: 255 | E23: 255 | F23: 255
A24: Michigan | C24: MI | D24: 255 | E24: 255 | F24: 255
C25: MN | D25: 255 | E25: 255 | F25: 255
C26: MO | D26: 255 | E26: 255 | F26: 255
C27: MS | D27: 255 | E27: 255 | F27: 255
C28: MT | D28: 255 | E28: 255 | F28: 255
A29: North Carolina | C29: NC | D29: 255 | E29: 255 | F29: 255
C30: ND | D30: 255 | E30: 255 | F30: 255
C31: NE | D31: 255 | E31: 255 | F31: 255
C32: NH | D32: 255 | E32: 255 | F32: 255
A33: New Jersey | C33: NJ | D33: 255 | E33: 255 | F33: 255
C34: NM | D34: 255 | E34: 255 | F34: 255
C35: NV | D35: 255 | E35: 255 | F35: 255
A36: New York | C36: NY | D36: 255 | E36: 255 | F36: 255
A37: Ohio | C37: OH | D37: 255 | E37: 255 | F37: 255
C38: OK | D38: 255 | E38: 255 | F38: 255
C39: OR | D39: 255 | E39: 255 | F39: 255
A40: Pennsylvania | C40: PA | D40: 255 | E40: 255 | F40: 255
C41: RI | D41: 255 | E41: 255 | F41: 255
C42: SC | D42: 255 | E42: 255 | F42: 255
C43: SD | D43: 255 | E43: 255 | F43: 255
C44: TN | D44: 255 | E44: 255 | F44: 255
A45: Texas | C45: TX | D45: 54 | E45: 96 | F45: 146
C46: UT | D46: 255 | E46: 255 | F46: 255
A47: Virginia | C47: VA | D47: 255 | E47: 255 | F47: 255
C48: VT | D48: 255 | E48: 255 | F48: 255
A49: Washington | C49: WA | D49: 255 | E49: 255 | F49: 255
C50: WI | D50: 255 | E50: 255 | F50: 255
C51: WV | D51: 255 | E51: 255 | F51: 255
C52: WY | D52: 255 | E52: 255 | F52: 255

Sheet Data
A1: ID | B1: State | C1: Followers | D1: Likes | E1: Member Visits | F1: Members | G1: Avg Time on Site | H1: Security | I1: EBIT 000s | J1: Customer Satisfaction | K1: FTE
A2: 1 | B2: Arizona | C2: 1154.4225 | D2: 2085.182 | E2: =F2*0.44 -> 917.48008 | F2: 2085.182 | G2: 63 | H2: 2 | I2: =I1*2 ->  | J2: 0.86 | K2: 11
A3: 2 | B3: California | C3: 3804.143 | D3: 3387.1648 | E3: =F3*0.53 -> 2513.276282 | F3: 4742.03072 | G3: 75 | H3: 4 | I3: 338716.48 | J3: 0.92 | K3: 55
A4: 3 | B4: Florida | C4: 689.7012 | D4: 1598.2378 | E4: =F4*0.44 -> 984.5144848 | F4: 2237.53292 | G4: 68 | H4: 4 | I4: 159823.78 | J4: 0.76 | K4: 29
A5: 4 | B5: Georgia | C5: 818.5867 | D5: 818.6453 | E5: 504.2855048 | F5: 1146.10342 | G5: 64 | H5: 2 | I5: 81864.53 | J5: 0.81 | K5: 16
A6: 5 | B6: Illinois | C6: 1287.5255 | D6: 993.8444 | E6: 612.2081504 | F6: 1391.38216 | G6: 62 | H6: 3 | I6: 124192.93 | J6: 0.9 | K6: 20
A7: 6 | B7: Massachusetts | C7: 664.6144 | D7: 589.4121 | E7: 363.0778536 | F7: 825.17694 | G7: 58 | H7: 2 | I7: 63490.97 | J7: 0.92 | K7: 11
A8: 7 | B8: Michigan | C8: 988.336 | D8: 634.9097 | E8: 391.1043752 | F8: 888.87358 | G8: 67 | H8: 3 | I8: 99384.44 | J8: 0.96 | K8: 16
A9: 8 | B9: New Jersey | C9: 886.459 | D9: 841.435 | E9: 518.32396 | F9: 1178.009 | G9: 69 | H9: 2 | I9: 84143.5 | J9: 0.85 | K9: 14
A10: 9 | B10: New York | C10: 1957.0261 | D10: 1897.6457 | E10: =F10*0.53 -> 1408.053109 | F10: 2656.70398 | G10: 72 | H10: 6 | I10: 189764.57 | J10: 0.88 | K10: 29
A11: 10 | B11: North Carolina | C11: 975.2073 | D11: 804.9313 | E11: =F11*0.44 -> 495.8376808 | F11: 1126.90382 | G11: 59 | H11: 1 | I11: 80493.13 | J11: 0.92 | K11: 15
A12: 11 | B12: Ohio | C12: 1931.7568 | D12: 1135.314 | E12: =F12*0.44 -> 699.353424 | F12: 1589.4396 | G12: 60 | H12: 1 | I12: 113531.4 | J12: 0.82 | K12: 18
A13: 12 | B13: Pennsylvania | C13: 991.9945 | D13: 1228.1054 | E13: =F13*0.44 -> 756.5129264 | F13: 1719.34756 | G13: 61 | H13: 2 | I13: 122810.54 | J13: 0.86 | K13: 20
A14: 13 | B14: Texas | C14: 2605.9203 | D14: 2097 | E14: =F14*0.53 -> 1555.974 | F14: 2935.8 | G14: 64 | H14: 3 | I14: 208518.2 | J14: 0.93 | K14: 38
A15: 14 | B15: Virginia | C15: 1276.3536 | D15: 707.8515 | E15: =F15*0.44 -> 436.036524 | F15: 990.9921 | G15: 63 | H15: 1 | I15: 70785.15 | J15: 0.79 | K15: 13
A16: 15 | B16: Washington | C16: 888 | D16: 1241.9293 | E16: =F16*0.44 -> 765.0284488 | F16: 1738.70102 | G16: 61 | H16: 0 | I16: 58941.21 | J16: 0.81 | K16: 12

Sheet Financial
A1: Number | B1: State | C1: 2013/14 | D1: 2014/15 | E1: 2015/16 | F1: 2016/17 | G1: 2017/18 | H1: 2018/19 | I1: 2019/20 | J1: NPS | K1: NPS -1 | L1: CS | M1: CS-1 | N1: EE | O1: EE-1
A2: 1 | B2: Arizona | C2: 126 | D2: 129 | E2: 107 | F2: 130 | G2: 136 | H2: 121 | I2: 126.98194 | J2: 27 | K2: =100-J2 -> 73 | L2: 83 | M2: =100-L2 -> 17 | N2: 82 | O2: =100-N2 -> 18
A3: 2 | B3: California | C3: 114 | D3: 117 | E3: 123 | F3: 156 | G3: 200 | H3: 224 | I3: 338.71648 | J3: 27 | K3: 73 | L3: 77 | M3: 23 | N3: 82 | O3: 18
A4: 3 | B4: Florida | C4: 134 | D4: 126 | E4: 108 | F4: 123 | G4: 109 | H4: 121 | I4: 159.82378 | J4: 23 | K4: 77 | L4: 76 | M4: 24 | N4: 87 | O4: 13
A5: 4 | B5: Georgia | C5: 114 | D5: 101 | E5: 110 | F5: 125 | G5: 116 | H5: 112 | I5: 81.86453 | J5: 15 | K5: 85 | L5: 89 | M5: 11 | N5: 80 | O5: 20
A6: 5 | B6: Illinois | C6: 131 | D6: 138 | E6: 124 | F6: 139 | G6: 137 | H6: 152 | I6: 124.19293 | J6: 26 | K6: 74 | L6: 81 | M6: 19 | N6: 76 | O6: 24
A7: 6 | B7: Massachusetts | C7: 101 | D7: 101 | E7: 85 | F7: 115 | G7: 118 | H7: 96 | I7: 63.49097 | J7: 15 | K7: 85 | L7: 77 | M7: 23 | N7: 75 | O7: 25
A8: 7 | B8: Michigan | C8: 148 | D8: 126 | E8: 151 | F8: 126 | G8: 123 | H8: 146 | I8: 99.38444 | J8: 20 | K8: 80 | L8: 88 | M8: 12 | N8: 86 | O8: 14
A9: 8 | B9: New Jersey | C9: 153 | D9: 140 | E9: 156 | F9: 153 | G9: 162 | H9: 160 | I9: 84.1435 | J9: 23 | K9: 77 | L9: 80 | M9: 20 | N9: 90 | O9: 10
A10: 9 | B10: New York | C10: 117 | D10: 118 | E10: 117 | F10: 121 | G10: 139 | H10: 129 | I10: 189.76457 | J10: 27 | K10: 73 | L10: 77 | M10: 23 | N10: 84 | O10: 16
A11: 10 | B11: North Carolina | C11: 152 | D11: 143 | E11: 159 | F11: 160 | G11: 155 | H11: 155 | I11: 80.49313 | J11: 17 | K11: 83 | L11: 83 | M11: 17 | N11: 75 | O11: 25
A12: 11 | B12: Ohio | C12: 110 | D12: 105 | E12: 114 | F12: 102 | G12: 90 | H12: 110 | I12: 113.5314 | J12: 18 | K12: 82 | L12: 76 | M12: 24 | N12: 76 | O12: 24
A13: 12 | B13: Pennsylvania | C13: 104 | D13: 123 | E13: 106 | F13: 98 | G13: 104 | H13: 100 | I13: 122.81054 | J13: 29 | K13: 71 | L13: 84 | M13: 16 | N13: 90 | O13: 10
A14: 13 | B14: Texas | C14: 88 | D14: 116 | E14: 126 | F14: 117 | G14: 120 | H14: 132 | I14: 208.5182 | J14: 18 | K14: 82 | L14: 79 | M14: 21 | N14: 88 | O14: 12
A15: 14 | B15: Virginia | C15: 90 | D15: 93 | E15: 114 | F15: 92 | G15: 98 | H15: 119 | I15: 70.78515 | J15: 17 | K15: 83 | L15: 79 | M15: 21 | N15: 80 | O15: 20
A16: 15 | B16: Washington | C16: 89 | D16: 75 | E16: 92 | F16: 85 | G16: 101 | H16: 95 | I16: 58.94121 | J16: 25 | K16: 75 | L16: 89 | M16: 11 | N16: 74 | O16: 26

Sheet Calcs
A1: ID | B1: State | C1: Followers | D1: Likes | E1: Member Visits | F1: Members | G1: Avg Time on Site | H1: Security | I1: EBIT 000s | J1: Customer Satisfaction | K1: FTE
A2: =Summary!AB1 -> 13 | B2: =INDEX(Data!B$2:B$16,MATCH($A$2,Data!$A$2:$A$16,0),1) -> Texas | C2: =INDEX(Data!C$2:C$16,MATCH($A$2,Data!$A$2:$A$16,0),1) -> 2605.9203 | D2: =INDEX(Data!D$2:D$16,MATCH($A$2,Data!$A$2:$A$16,0),1) -> 2097 | E2: =INDEX(Data!E$2:E$16,MATCH($A$2,Data!$A$2:$A$16,0),1) -> 1555.974 | F2: =INDEX(Data!F$2:F$16,MATCH($A$2,Data!$A$2:$A$16,0),1) -> 2935.8 | G2: =INDEX(Data!G$2:G$16,MATCH($A$2,Data!$A$2:$A$16,0),1) -> 64 | H2: =INDEX(Data!H$2:H$16,MATCH($A$2,Data!$A$2:$A$16,0),1) -> 3 | I2: =INDEX(Data!I$2:I$16,MATCH($A$2,Data!$A$2:$A$16,0),1)/1000 -> 208.5182 | J2: =INDEX(Data!J$2:J$16,MATCH($A$2,Data!$A$2:$A$16,0),1) -> 0.93 | K2: =INDEX(Data!K$2:K$16,MATCH($A$2,Data!$A$2:$A$16,0),1) -> 38
A7: ID | B7: State | C7: =Financial!C1 -> 2013/14 | D7: =Financial!D1 -> 2014/15 | E7: =Financial!E1 -> 2015/16 | F7: =Financial!F1 -> 2016/17 | G7: =Financial!G1 -> 2017/18 | H7: =Financial!H1 -> 2018/19 | I7: =Financial!I1 -> 2019/20
A8: =A2 -> 13 | B8: =INDEX(Data!B$2:B$16,MATCH($A$8,Data!$A$2:$A$16,0),1) -> Texas | C8: =SUMIFS(Financial!C2:C16,Financial!$B$2:$B$16,$B8) -> 88 | D8: =SUMIFS(Financial!D2:D16,Financial!$B$2:$B$16,$B8) -> 116 | E8: =SUMIFS(Financial!E2:E16,Financial!$B$2:$B$16,$B8) -> 126 | F8: =SUMIFS(Financial!F2:F16,Financial!$B$2:$B$16,$B8) -> 117 | G8: =SUMIFS(Financial!G2:G16,Financial!$B$2:$B$16,$B8) -> 120 | H8: =SUMIFS(Financial!H2:H16,Financial!$B$2:$B$16,$B8) -> 132 | I8: =SUMIFS(Financial!I2:I16,Financial!$B$2:$B$16,$B8) -> 208.5182
A11: ID | B11: State | C11: =Financial!J1 -> NPS | D11: =Financial!K1 -> NPS -1 | E11: =Financial!L1 -> CS | F11: =Financial!M1 -> CS-1 | G11: =Financial!N1 -> EE | H11: =Financial!O1 -> EE-1
B12: =B2 -> Texas | C12: =SUMIFS(Financial!J2:J16,Financial!$B$2:$B$16,$B12) -> 18 | D12: =SUMIFS(Financial!K2:K16,Financial!$B$2:$B$16,$B12) -> 82 | E12: =SUMIFS(Financial!L2:L16,Financial!$B$2:$B$16,$B12) -> 79 | F12: =SUMIFS(Financial!M2:M16,Financial!$B$2:$B$16,$B12) -> 21 | G12: =SUMIFS(Financial!N2:N16,Financial!$B$2:$B$16,$B12) -> 88 | H12: =SUMIFS(Financial!O2:O16,Financial!$B$2:$B$16,$B12) -> 12
B13: % Change | C13: =C12/100 -> 0.18 | E13: =E12/100 -> 0.79 | G13: =G12/100 -> 0.88

Sheet Summary
AB1: 13 | AC1: State
AC2: Arizona
AC3: California
AC4: Florida
AC5: Georgia
AC6: Illinois
AC7: Massachusetts
AC8: Michigan
AC9: New Jersey
AC10: New York
AC11: North Carolina
AC12: Ohio
AC13: Pennsylvania
AC14: Texas
AC15: Virginia
AC16: Washington
